bitfinex-derivatives/quotes_ETHF0:USTF0_20250123
["timestamp","ask_amount","ask_price","bid_price","bid_amount"]
[1737646763592,0.61401,3257.7,3257.2,10.05664319]
[1737646763793,0.61401,3257.7,3257.3,0.34649117]
[1737646764000,0.614,3257.8,3257.2,10.67074319]
[1737646764193,3.5402,3258.1,3257.3,0.3464893]
[1737646764399,0.61401,3257.8,3257.2,10.67074319]
[1737646764601,3.5402,3258.1,3257.3,0.34659834]
[1737646764898,0.61409,3257.3,3257.2,10.05664319]
[1737646765199,0.61411,3257.2,3257.1,0.00460681]
[1737646765399,4.27351,3257.2,3257.1,0.00460681]
[1737646766999,3.6594,3257.2,3257.1,0.00460681]
[1737646767396,0.61408,3257.4,3257.1,0.00460681]
[1737646767701,0.61411,3257.2,3257.1,0.00460681]
[1737646767903,0.61407,3257.4,3257.1,0.00460681]
[1737646768399,3.2078,3257.7,3257.1,0.00460681]
[1737646768699,0.61411,3257.2,3257.1,0.00460681]
[1737646769288,8.82191,3257.2,3257.1,0.00460681]
[1737646769487,0.6142,3256.7,3256.6,3.2078]
[1737646770495,0.61425,3256.5,3256.0,6.10704319]
[1737646770701,3.82206,3256.4,3256.3,0.00460681]
[1737646771002,0.61441,3255.6,3254.9,0.61453]
[1737646771193,2.89924319,3256.1,3255.0,0.34729154]
[1737646771508,0.6144,3255.7,3255.2,3.2078]
[1737646771699,6.8406,3256.0,3255.2,3.2078]
[1737646771700,0.61438,3255.8,3255.2,3.2078]
[1737646771895,0.61439,3255.7,3255.2,3.2078]
[1737646772098,0.61441,3255.6,3255.2,3.2078]
[1737646772294,6.8406,3256.0,3255.1,0.00460681]
[1737646772497,1.53589,3255.9,3255.1,0.00460681]
[1737646773008,0.61448,3255.2,3255.1,0.00460681]
[1737646773192,1.53589,3255.9,3255.1,0.00460681]
[1737646773398,0.61447,3255.3,3255.1,0.00460681]
[1737646774100,0.61445,3255.4,3255.1,0.00460681]
[1737646774410,6.8406,3256.0,3255.1,0.00460681]
[1737646774411,0.61448,3255.2,3255.1,0.00460681]
[1737646774799,7.66414898,3255.9,3255.1,0.00460681]
[1737646774994,3.6803,3255.9,3255.3,2.89924319]
[1737646775202,0.61438,3255.8,3255.4,3.5205]
[1737646775504,4.29466,3255.9,3255.4,3.5205]
[1737646775901,3.6803,3255.9,3255.4,3.5205]
[1737646776209,3.6803,3255.9,3255.1,0.00460681]
[1737646776507,7.10350221,3256.2,3255.7,2.89924319]
[1737646776707,7.10350221,3256.2,3255.1,0.00460681]
[1737646776908,3.2078,3256.0,3255.1,0.00460681]
[1737646777096,0.61445,3255.4,3255.1,0.00460681]
[1737646777298,0.61443,3255.5,3255.1,0.00460681]
[1737646777504,3.3947,3255.4,3255.1,0.00460681]
[1737646778309,0.61448,3255.2,3255.1,0.00460681]
[1737646779401,0.61463,3254.5,3253.9,7.2353]
[1737646779605,3.2078,3254.8,3253.9,3.6482]
[1737646779905,6.16938278,3254.7,3253.7,2.89924319]
[1737646780105,0.61471,3254.0,3253.7,2.89924319]
[1737646780408,5.55467278,3255.0,3253.7,2.89924319]
[1737646780409,0.61452,3255.1,3253.8,0.61475]
[1737646780601,3.4207,3255.2,3254.6,3.2078]
[1737646780794,0.61455,3254.9,3254.4,3.2078]
[1737646781003,0.61458,3254.8,3254.1,2.89924319]
[1737646781198,6.63310681,3255.2,3254.1,2.89924319]
[1737646781398,0.61456,3254.8,3254.0,3.2078]
[1737646781605,6.63310681,3255.2,3254.4,3.2078]
[1737646781821,3.42530681,3255.2,3254.4,3.2078]
[1737646782302,0.00460681,3255.2,3254.8,0.61455]
[1737646782610,0.00460681,3255.2,3255.1,3.2078]
[1737646783193,0.00460681,3255.2,3255.1,3.8223]
[1737646783502,0.00460681,3255.2,3255.1,3.2078]
[1737646784901,0.61908681,3255.2,3255.1,3.2078]
[1737646786401,0.00460681,3255.2,3254.5,3.2078]
[1737646786608,7.2649,3255.1,3254.5,3.2078]
[1737646786805,0.61463,3254.5,3254.3,3.4482]
[1737646787106,3.2078,3255.0,3254.3,3.4482]
[1737646787107,0.61459,3254.7,3254.3,3.4482]
[1737646787309,3.2078,3255.0,3254.1,3.2078]
[1737646787996,0.61462,3254.5,3254.1,3.2078]
[1737646788214,0.61475,3253.8,3253.6,3.6615]
[1737646788416,0.61475,3253.8,3253.2,3.2078]
[1737646788417,0.61479,3253.6,3253.2,3.2078]
[1737646788804,0.61479,3253.6,3252.6,6.6407]
[1737646789133,0.61479,3253.6,3252.7,0.61495]
[1737646789302,0.61479,3253.6,3252.6,6.6407]
[1737646789504,0.61479,3253.6,3253.0,3.2078]
[1737646790112,7.2966,3253.7,3253.0,3.2078]
[1737646790297,3.82256,3253.8,3253.2,0.61486]
[1737646790698,0.61471,3254.0,3253.4,3.2078]
[1737646790909,7.1483,3254.3,3253.4,3.2078]
[1737646791302,9.60994319,3254.9,3253.8,3.2078]
[1737646791503,7.81386,3254.8,3254.2,3.2078]
[1737646791702,6.10704319,3255.3,3254.6,3.2078]
[1737646791703,0.61909681,3255.2,3254.6,3.2078]
[1737646791915,0.00460681,3255.2,3254.6,3.2078]
[1737646792211,0.61451,3255.1,3254.6,3.2078]
[1737646792511,0.61457,3254.8,3254.6,3.2078]
[1737646792711,0.61456,3254.8,3254.6,3.2078]
[1737646792909,0.00460681,3255.2,3254.6,3.2078]
[1737646793516,0.61454,3254.9,3254.6,3.2078]
[1737646793811,3.2078,3254.9,3254.2,3.5781]
[1737646794014,0.61461,3254.6,3254.1,3.2078]
[1737646794314,3.2078,3254.9,3254.1,3.2078]
[1737646794512,0.61465,3254.4,3254.1,3.2078]
[1737646794717,6.10704319,3254.9,3254.1,3.2078]
[1737646795111,0.61477,3253.7,3253.2,3.2078]
[1737646795311,1.53669,3254.2,3253.2,3.2078]
[1737646795312,0.61479,3253.6,3253.2,3.2078]
[1737646795618,0.61479,3253.6,3252.6,3.2078]
[1737646796916,0.61479,3253.6,3252.6,3.82276]
[1737646797111,0.61479,3253.6,3252.6,3.2078]
[1737646797328,9.03776384,3253.6,3251.6,3.2078]
[1737646797509,3.2078,3252.5,3251.6,3.2078]
[1737646797815,0.61501,3252.4,3251.7,0.61514]
[1737646798014,0.61503,3252.4,3251.7,0.61514]
[1737646798337,0.61503,3252.4,3251.3,7.1224]
[1737646798338,3.2078,3252.5,3252.0,3.2078]
[1737646798519,0.00460681,3252.4,3252.0,3.2078]
[1737646799017,0.61962681,3252.4,3252.0,3.2078]
[1737646799316,0.00460681,3252.4,3252.0,3.2078]
[1737646799517,0.00460681,3252.4,3252.1,3.4177]
[1737646800009,0.61962681,3252.4,3252.1,3.4177]
[1737646800316,0.00460681,3252.4,3252.1,3.4177]
[1737646801223,0.61505,3252.3,3252.1,3.4177]
[1737646801413,0.00460681,3252.4,3252.1,3.4177]
[1737646801414,0.61505,3252.2,3252.1,3.4177]
[1737646801715,0.00460681,3252.4,3252.1,3.4177]
[1737646802109,0.00460681,3252.4,3252.3,3.2078]
[1737646802717,0.61961681,3252.4,3252.3,44.0078]
[1737646802919,0.00460681,3252.4,3252.3,3.2078]
[1737646803321,0.00460681,3252.4,3252.3,44.0078]
[1737646804011,0.61503,3252.3,3252.2,3.6538]
[1737646804429,0.00460681,3252.4,3251.8,3.2078]
[1737646804618,0.00460681,3252.4,3251.4,3.2078]
[1737646804809,0.00460681,3252.4,3251.5,6.43134319]
[1737646805012,0.61512,3251.9,3251.5,6.43134319]
[1737646805315,0.61513,3251.8,3251.4,3.2078]
[1737646805522,0.61513,3251.8,3250.7,6.10704319]
[1737646805722,4.58437445,3251.8,3250.7,9.56904319]
[1737646805915,3.3934,3251.9,3250.7,9.56904319]
[1737646806219,3.4656,3251.7,3251.1,2.89924319]
[1737646806410,3.4656,3251.7,3251.2,3.2078]
[1737646806811,0.61519,3251.5,3251.2,3.2078]
[1737646807123,3.4656,3251.7,3251.1,0.00460681]
[1737646807124,0.6152,3251.4,3251.1,0.00460681]
[1737646807314,0.61519,3251.5,3251.1,0.00460681]
[1737646807624,3.82297,3251.6,3251.1,2.90385]
[1737646807916,3.2078,3251.6,3251.2,3.2078]
[1737646808118,6.9649,3251.6,3251.1,0.00460681]
[1737646808322,0.61521,3251.4,3251.1,0.00460681]
[1737646808624,7.58006,3251.6,3251.1,0.00460681]
[1737646808819,7.58006,3251.6,3251.1,2.90385]
[1737646809030,7.58006,3251.6,3251.3,0.00190424]
[1737646809214,3.2078,3251.6,3251.3,0.00190424]
[1737646809618,0.61516,3251.6,3251.3,0.00190424]
[1737646809815,3.2078,3252.0,3251.5,2.89924319]
[1737646810020,3.6926,3252.3,3251.6,3.2078]
[1737646810021,0.61507,3252.2,3251.6,3.2078]
[1737646810217,3.6926,3252.3,3251.9,2.89924319]
[1737646810419,0.00460681,3252.4,3252.1,3.2078]
[1737646811013,0.61505,3252.2,3252.1,3.2078]
[1737646811214,0.00460681,3252.4,3252.1,3.2078]
[1737646811422,0.00460681,3252.4,3252.3,2.89924319]
[1737646811729,0.61961681,3252.4,3252.1,3.2078]
[1737646811916,0.61961681,3252.4,3251.5,40.8]
[1737646811917,0.00460681,3252.4,3251.6,3.2078]
[1737646812115,0.6151,3252.0,3251.6,3.2078]
[1737646812318,0.00460681,3252.4,3251.6,3.2078]
[1737646812623,0.61514,3251.7,3251.6,3.2078]
[1737646812828,0.00460681,3252.4,3251.6,3.2078]
[1737646813425,0.61508,3252.1,3251.6,3.2078]
[1737646813626,0.61509,3252.0,3251.6,3.2078]
[1737646813832,0.00460681,3252.4,3251.6,3.82296]
[1737646813833,0.61506,3252.2,3251.6,3.82296]
[1737646814125,0.00460681,3252.4,3251.6,3.82296]
[1737646814326,0.61508,3252.1,3251.6,3.2078]
[1737646814629,0.61514,3251.7,3251.6,3.2078]
[1737646814924,0.61514,3251.7,3251.4,3.4831]
[1737646815222,0.61518,3251.6,3251.3,0.00190424]
[1737646815626,0.61517,3251.6,3251.3,0.00190424]
[1737646815828,0.61518,3251.5,3251.3,0.00190424]
[1737646816621,0.6152,3251.5,3251.3,0.00190424]
[1737646817021,2.8674,3251.9,3251.3,0.00190424]
[1737646817625,0.61506,3252.2,3251.8,3.2078]
[1737646817820,0.61515,3251.7,3251.5,2.89924319]
[1737646818020,0.61506,3252.2,3251.6,3.82296]
[1737646818222,4.74519,3252.8,3252.0,3.2078]
[1737646818223,3.2078,3252.8,3252.0,3.2078]
[1737646818420,3.2078,3252.8,3252.3,2.89924319]
[1737646818883,3.2078,3252.8,3252.1,2.969]
[1737646818884,0.61505,3252.2,3252.1,2.969]
[1737646819222,1.53744,3252.6,3251.7,2.8928]
[1737646819432,0.61508,3252.1,3251.7,43.6928]
[1737646819723,0.61508,3252.1,3251.7,2.8928]
[1737646819927,0.61507,3252.1,3251.7,2.8928]
[1737646820325,0.61508,3252.1,3251.7,2.8928]
[1737646820525,0.61507,3252.1,3251.7,2.8928]
[1737646821227,3.2078,3252.6,3252.0,3.2078]
[1737646821531,6.0068,3253.0,3252.3,2.89924319]
[1737646821722,0.61961681,3252.4,3252.3,0.34618286]
[1737646822030,0.00460681,3252.4,3252.1,2.7572]
[1737646822229,0.61503,3252.3,3252.1,2.7572]
[1737646822526,0.00460681,3252.4,3252.1,2.7572]
[1737646822730,0.00460681,3252.4,3252.0,3.2078]
[1737646823128,0.61963681,3252.4,3252.1,0.34672356]
[1737646823333,0.61963681,3252.4,3252.0,3.2078]
[1737646823526,3.21240681,3252.4,3252.1,0.34672164]
[1737646823834,0.6152,3251.4,3251.3,0.00190424]
[1737646826325,3.82299,3251.5,3251.3,0.00190424]
[1737646826530,2.8942,3251.8,3251.3,0.00190424]
[1737646826733,3.50933,3251.8,3251.3,0.61711424]
[1737646826935,0.61514,3251.7,3251.3,0.00190424]
[1737646827135,0.61514,3251.7,3251.3,2.93040424]
[1737646827531,0.61512,3251.9,3251.3,6.75341424]
[1737646827736,2.9503,3252.3,3251.3,6.13820424]
[1737646828038,0.61508,3252.1,3251.7,3.2078]
[1737646828531,0.61509,3252.0,3251.4,0.61519]
[1737646828842,2.9503,3252.3,3251.4,0.61519]
[1737646829033,0.00460681,3252.4,3251.7,3.2078]
[1737646829341,0.00460681,3252.4,3252.1,3.2078]
[1737646829531,0.61503,3252.3,3252.1,3.2078]
[1737646829839,0.61504,3252.3,3252.1,3.2078]
[1737646830147,3.21240681,3252.4,3251.6,3.2078]
[1737646830334,3.21240681,3252.4,3251.3,2.93040424]
[1737646830335,3.2078,3252.0,3251.3,2.93040424]
[1737646830537,0.6152,3251.4,3251.3,0.00190424]
[1737646831138,3.2078,3251.6,3251.3,0.00190424]
[1737646831139,0.61519,3251.5,3251.3,0.00190424]
[1737646831527,0.6152,3251.4,3251.3,0.00190424]
[1737646831728,0.61519,3251.5,3251.3,0.00190424]
[1737646831932,0.6152,3251.4,3251.3,0.00190424]
[1737646832941,2.7608,3251.8,3251.3,0.00190424]
[1737646833128,0.61518,3251.6,3251.3,0.00190424]
[1737646833540,2.7608,3251.8,3251.3,0.00190424]
[1737646833739,0.61519,3251.5,3251.3,0.00190424]
[1737646834437,0.61514,3251.4,3251.3,0.00190424]
[1737646834636,0.61514,3251.5,3251.3,0.00190424]
[1737646834938,2.7608,3251.8,3251.3,0.00190424]
[1737646835136,3.61356,3251.9,3251.3,0.61705424]
[1737646835329,3.2078,3252.0,3251.3,2.89860424]
[1737646835527,5.8804403,3252.2,3251.6,3.2078]
[1737646835739,5.8804403,3252.2,3251.7,0.95934743]
[1737646835934,5.8804403,3252.2,3251.8,0.95933743]
[1737646836131,5.8804403,3252.2,3251.9,0.34427743]
[1737646836336,5.8804403,3252.1,3252.0,0.34427743]
[1737646836732,5.8804403,3252.1,3252.0,3.55207743]
[1737646836932,5.8804403,3252.1,3252.0,3.55201098]
[1737646838741,14.0882403,3252.1,3251.3,0.00190424]
[1737646839040,0.61514,3251.4,3251.3,0.00190424]
[1737646840539,0.61513,3251.5,3251.3,0.00190424]
[1737646841431,0.61514,3251.4,3251.3,0.00190424]
[1737646844244,1.53766,3251.9,3251.3,3.2078]
[1737646844453,1.53729,3252.7,3251.7,3.2078]
[1737646844643,0.615,3252.2,3251.7,3.82288]
[1737646844840,0.61505,3251.9,3251.8,0.34396469]
[1737646845147,4.74528,3252.2,3251.2,8.2313]
[1737646845452,3.36365474,3252.4,3251.2,5.4548]
[1737646845453,0.61516,3251.3,3251.2,5.4548]
[1737646845950,0.61515,3251.4,3251.2,5.4548]
[1737646846140,3.2078,3251.8,3251.3,0.61515]
[1737646846141,0.61508,3251.8,3251.3,0.61515]
[1737646846348,0.61506,3251.9,3251.3,0.61516]
[1737646846539,0.61507,3251.8,3251.2,8.82657]
[1737646846748,0.61507,3251.8,3251.3,0.34399643]
[1737646846942,3.2078,3252.2,3251.4,0.34399166]
[1737646847139,0.61504,3252.0,3251.3,0.61516]
[1737646847347,3.2078,3252.2,3251.4,0.34398245]
[1737646847550,3.2078,3252.2,3251.4,0.61513]
[1737646847948,0.61506,3251.9,3251.5,0.34399041]
[1737646848144,3.2078,3252.2,3251.2,8.2114]
[1737646848356,0.61507,3251.8,3251.3,0.34398924]
[1737646848644,3.2078,3252.2,3251.4,0.34398924]
[1737646848851,0.61515,3251.4,3251.2,5.4548]
[1737646849059,0.61518,3251.2,3251.1,0.00460681]
[1737646850647,0.61518,3251.2,3251.1,6.81e-06]
[1737646851048,9.57600736,3251.2,3251.1,6.81e-06]
[1737646851245,9.57600736,3251.2,3249.8,3.2078]
[1737646851246,0.61543,3249.9,3249.8,3.2078]
[1737646852047,0.6155,3249.5,3249.4,4.80284433]
[1737646852447,5.0,3249.5,3249.2,7.19816173]
[1737646852646,3.97458793,3249.3,3249.2,7.19816173]
[1737646852856,3.97458793,3249.3,3249.1,0.00309741]
[1737646852857,3.35904793,3249.3,3249.1,0.00309741]
[1737646853050,0.61558,3249.1,3249.0,8.70011034]
[1737646854057,0.61569,3248.5,3247.8,3.2078]
[1737646854249,1.53901,3249.0,3247.8,3.2078]
[1737646854456,0.61575,3248.2,3247.8,3.2078]
[1737646854647,3.95402317,3248.9,3247.8,3.2078]
[1737646854857,3.35904793,3248.8,3247.8,3.2078]
[1737646855050,3.2078,3249.1,3247.8,3.2078]
[1737646855250,3.95402317,3248.9,3247.9,0.61579]
[1737646855446,0.61565,3248.7,3247.8,3.2078]
[1737646855748,7.30966442,3248.8,3247.8,3.2078]
[1737646856058,0.61584,3247.8,3247.6,4.82631751]
[1737646856259,3.2078,3248.5,3247.6,4.82631751]
[1737646856553,0.00461467,3248.4,3247.6,4.82631751]
[1737646856755,0.6158,3248.0,3247.6,4.82631751]
[1737646856952,0.61578,3248.1,3247.6,4.82631751]
[1737646857254,0.00461467,3248.4,3247.8,3.2078]
[1737646857459,0.00461467,3248.4,3248.2,3.2078]
[1737646859256,3.2078,3249.5,3248.2,3.2078]
[1737646859857,4.72227103,3248.3,3248.2,3.2078]
[1737646860760,0.00461467,3248.6,3248.2,3.2078]
[1737646862060,3.21241467,3248.6,3247.9,0.00461467]
[1737646863561,3.2078,3248.2,3247.9,0.00461467]
[1737646863766,5.2823,3248.1,3247.9,0.00461467]
[1737646863961,9.23623974,3248.1,3247.9,0.00461467]
[1737646864267,14.23623974,3248.1,3247.9,0.00461467]
[1737646864464,14.23623974,3248.1,3247.1,3.2078]
[1737646864655,6.56684793,3247.8,3247.1,3.2078]
[1737646864861,3.2078,3247.2,3245.6,6.0264]
[1737646865165,3.2078,3245.9,3244.9,3.2078]
[1737646865463,3.2078,3245.9,3244.7,3.2078]
[1737646865760,3.2078,3245.5,3244.7,3.2078]
[1737646865963,0.00462192,3245.7,3244.7,3.2078]
[1737646866469,0.00462192,3245.7,3245.1,3.2078]
[1737646867272,0.00462192,3245.7,3244.7,3.2078]
[1737646867767,0.00462192,3245.7,3244.8,2.5714]
[1737646867965,0.00462192,3245.7,3245.1,3.2078]
[1737646868271,3.2078,3246.5,3245.2,2.5728]
[1737646868461,3.2078,3246.5,3245.3,2.6266]
[1737646868965,3.2078,3246.5,3245.5,3.2078]
[1737646869162,3.2078,3246.5,3245.9,3.2078]
[1737646869574,3.21242192,3246.5,3245.9,3.21242192]
[1737646871372,3.21242192,3246.5,3246.0,2.404]
[1737646872665,0.00462192,3246.5,3246.0,2.404]
[1737646872875,3.2078,3246.9,3246.3,3.2078]
[1737646873471,3.2078,3246.9,3246.4,2.7267]
[1737646874176,0.00462192,3247.0,3246.4,2.7267]
[1737646874365,0.00462192,3247.0,3246.7,3.2078]
[1737646875171,5.6826,3247.9,3246.7,3.2078]
[1737646875366,3.2078,3247.9,3247.1,3.2078]
[1737646875574,3.2078,3247.9,3246.9,3.35904793]
[1737646875575,3.2078,3247.9,3247.5,3.2078]
[1737646876072,3.2078,3248.6,3247.6,2.573]
[1737646876467,0.00462192,3248.4,3247.9,3.2078]
[1737646877671,0.00462192,3248.4,3248.3,3.2078]
[1737646879367,3.2078,3249.4,3248.3,3.2078]
[1737646880477,3.2078,3249.4,3248.7,3.2078]
[1737646880669,0.00462192,3249.2,3248.7,3.2078]
[1737646881179,3.2078,3249.8,3249.1,3.2078]
[1737646881783,3.2078,3250.4,3249.1,3.2078]
[1737646881977,3.82315,3250.4,3249.5,0.61549]
[1737646882278,3.82315,3250.4,3249.1,3.2078]
[1737646882475,3.82315,3250.4,3249.0,3.35904793]
[1737646882476,0.00462192,3250.3,3249.7,3.2078]
[1737646883478,0.00462192,3250.3,3250.1,0.61538]
[1737646883882,0.00462192,3250.3,3249.8,2.4287]
[1737646884079,0.00462192,3250.3,3250.2,0.61537]
[1737646884277,3.2078,3250.8,3250.3,0.61535]
[1737646884474,3.2078,3251.5,3250.6,0.61528]
[1737646884880,3.2078,3251.5,3250.3,2.41]
[1737646885682,0.00303298,3251.2,3250.5,0.6153]
[1737646885984,0.00303298,3251.2,3250.6,3.82308]
[1737646886179,0.00303298,3251.2,3250.6,3.2078]
[1737646886380,0.61527,3250.7,3250.3,2.41]
[1737646886584,0.61526,3250.8,3250.2,3.2078]
[1737646886787,3.2078,3251.1,3250.2,3.2078]
[1737646887482,0.00303298,3251.2,3250.6,3.82308]
[1737646887676,0.00303298,3251.2,3250.6,3.2078]
[1737646888080,3.2078,3251.1,3250.6,3.2078]
[1737646888296,3.2078,3251.1,3250.2,3.2078]
[1737646888486,3.2078,3250.7,3249.9,2.3586]
[1737646888679,0.61537,3250.2,3249.9,2.3586]
[1737646888983,3.2078,3251.1,3250.1,3.2078]
[1737646889489,0.61527,3250.8,3250.1,3.82319]
[1737646889891,0.61527,3250.8,3250.1,3.2078]
[1737646890074,3.2078,3251.1,3250.1,3.2078]
[1737646890279,0.61529,3250.7,3250.1,3.2078]
[1737646890481,0.61526,3250.8,3250.1,3.82318]
[1737646890879,3.2078,3251.1,3250.1,3.2078]
[1737646891074,0.61526,3250.8,3250.1,3.82318]
[1737646891479,3.2078,3251.1,3250.1,3.2078]
[1737646891679,0.61532,3250.5,3250.1,3.2078]
[1737646891986,3.2078,3251.1,3250.1,3.2078]
[1737646892178,0.61526,3250.8,3250.1,3.82318]
[1737646892784,0.61527,3250.7,3250.1,3.82318]
[1737646892984,0.61526,3250.8,3250.1,3.82318]
[1737646893487,0.61528,3250.7,3250.1,3.82318]
[1737646893687,0.61526,3250.8,3250.1,3.82318]
[1737646894287,0.61526,3250.8,3250.2,0.61537]
[1737646894881,0.61525,3250.9,3250.2,0.61537]
[1737646895091,0.61526,3250.8,3250.2,0.61537]
[1737646895481,0.61528,3250.7,3250.1,3.82318]
[1737646896288,3.2078,3251.1,3250.1,3.82318]
[1737646896289,0.61527,3250.8,3250.2,0.61537]
[1737646896585,3.2078,3251.1,3250.2,1.53842]
[1737646896786,3.2078,3251.1,3251.0,0.61522]
[1737646896994,0.00303298,3251.2,3250.5,3.2078]
[1737646897185,0.00303298,3251.2,3250.6,43.2747]
[1737646897379,0.00303298,3251.2,3250.9,0.61523]
[1737646897581,0.00303298,3251.2,3250.6,43.2747]
[1737646897780,0.00303298,3251.2,3250.8,0.61525]
[1737646898189,0.00303298,3251.2,3250.6,2.4747]
[1737646898891,0.61525,3250.9,3250.6,2.4747]
[1737646899495,3.21083298,3251.2,3250.6,2.4747]
[1737646899685,0.61524,3250.9,3250.6,2.4747]
[1737646899889,0.61523,3251.0,3250.6,2.4747]
[1737646900089,3.21083298,3251.2,3250.6,2.4747]
[1737646900289,0.61524,3251.0,3250.6,2.4747]
[1737646900487,0.61522,3251.1,3250.6,2.4747]
[1737646900892,0.61523,3251.0,3250.6,2.4747]
[1737646901186,0.00303298,3251.2,3251.1,0.6152]
[1737646901585,3.2078,3252.1,3251.7,0.61508]
[1737646901888,2.5742,3252.2,3251.8,0.61505]
[1737646902197,2.5742,3252.2,3251.7,3.2078]
[1737646902389,3.1892,3252.2,3251.7,3.2078]
[1737646903092,2.5742,3252.2,3251.7,3.2078]
[1737646903391,0.61505,3251.9,3251.7,3.2078]
[1737646903596,0.61508,3251.7,3251.6,0.00461467]
[1737646904984,0.61508,3251.8,3251.6,0.00461467]
[1737646905182,2.5742,3252.2,3251.6,0.00461467]
[1737646905388,3.82276,3252.4,3251.6,3.21241467]
[1737646905592,3.2078,3252.4,3251.6,3.21241467]
[1737646905888,0.61499,3252.2,3251.7,5.61487]
[1737646906086,0.61499,3252.2,3251.7,5.61488]
[1737646906390,1.53725,3252.7,3251.7,4.9998]
[1737646906690,5.6477,3252.8,3251.7,4.9998]
[1737646906891,3.2078,3252.4,3251.7,2.4958]
[1737646907094,0.61508,3251.7,3251.6,3.21241467]
[1737646907686,3.2078,3252.4,3251.6,3.21241467]
[1737646907896,0.61501,3252.1,3251.6,3.82751467]
[1737646908194,3.2078,3252.4,3251.6,3.82751467]
[1737646908195,0.61505,3251.9,3251.6,3.21241467]
[1737646908387,0.61497,3252.3,3251.6,3.21241467]
[1737646908593,0.61502,3252.1,3251.6,3.82751467]
[1737646908797,3.2078,3252.4,3251.6,3.21241467]
[1737646909393,0.61508,3251.8,3251.6,3.21241467]
[1737646909997,0.61506,3251.9,3251.6,3.21241467]
[1737646910396,0.61506,3251.9,3251.7,0.34325194]
[1737646910697,0.61506,3251.9,3251.6,3.21241467]
[1737646910892,1.53743,3252.3,3251.6,3.21241467]
[1737646911100,0.61508,3251.7,3251.6,3.21241467]
[1737646911301,0.61506,3251.9,3251.6,3.55582218]
[1737646911492,0.61503,3252.0,3251.6,3.21241467]
[1737646911692,3.2078,3252.4,3251.7,0.34338989]
[1737646911897,3.2078,3252.4,3251.6,3.21241467]
[1737646911898,3.2078,3252.4,3251.6,5.51621467]
[1737646912099,3.2078,3252.4,3251.7,2.3066]
[1737646912301,3.82277,3252.4,3251.7,2.3066]
[1737646912498,3.2078,3252.4,3252.0,0.61503]
[1737646912695,5.6477,3252.8,3252.0,3.2078]
[1737646912895,0.61492,3252.6,3252.1,0.615]
[1737646913096,0.61492,3252.6,3252.2,0.34346827]
[1737646913404,5.6477,3252.8,3252.3,0.34351222]
[1737646913602,5.6477,3252.8,3252.4,0.34337846]
[1737646913896,5.6477,3252.8,3252.0,3.2078]
[1737646914103,0.61493,3252.6,3252.1,0.9583902]
[1737646914302,5.6477,3252.8,3252.1,0.9583902]
[1737646914303,5.6477,3252.8,3252.2,0.3433902]
[1737646914598,0.61493,3252.6,3252.3,0.3433902]
[1737646914803,0.61493,3252.5,3252.1,0.615]
[1737646915104,1.53725,3252.7,3252.0,3.2078]
[1737646915305,0.61499,3252.2,3252.1,0.3432368]
[1737646915502,0.61498,3252.3,3252.1,0.3432368]
[1737646915703,0.61498,3252.3,3252.0,3.2078]
[1737646915900,0.61498,3252.3,3252.1,0.34323435]
[1737646916100,0.61496,3252.4,3252.2,0.34323435]
[1737646916297,5.6477,3252.8,3252.0,3.2078]
[1737646916497,0.61492,3252.6,3252.1,0.95814363]
[1737646916703,0.61491,3252.7,3252.2,0.95812363]
[1737646916992,5.6477,3252.8,3252.3,0.34313572]
[1737646917200,5.6477,3252.8,3252.0,3.2078]
[1737646917396,0.61496,3252.4,3252.1,0.34310291]
[1737646917596,5.6477,3252.8,3252.2,0.34310291]
[1737646917796,5.6477,3252.8,3252.3,0.34310291]
[1737646917994,0.61492,3252.6,3252.1,0.615]
[1737646918202,0.61492,3252.6,3252.2,0.3430909]
[1737646918402,0.61492,3252.6,3252.3,0.3430909]
[1737646918602,0.61492,3252.6,3252.1,0.615]
[1737646918800,5.6477,3252.8,3252.2,0.34304884]
[1737646918995,0.61491,3252.7,3252.3,0.34304869]
[1737646919197,1.53703,3253.2,3252.0,3.2078]
[1737646919403,0.61487,3252.9,3252.4,3.82275]
[1737646919614,0.61487,3252.9,3252.5,0.34302293]
[1737646919812,0.61487,3252.9,3252.4,3.82275]
[1737646919813,0.61488,3252.8,3252.4,3.82275]
[1737646920006,0.61488,3252.8,3252.5,0.34300587]
[1737646920206,1.53701,3253.2,3252.4,3.2078]
[1737646920414,0.61493,3252.5,3252.4,3.2078]
[1737646920614,3.82273,3252.5,3252.4,0.34306667]
[1737646920817,1.53739,3252.4,3251.7,2.3066]
[1737646921016,0.61505,3251.9,3251.8,0.34309467]
[1737646921518,0.61494,3252.5,3252.0,0.61503]
[1737646921813,0.61499,3252.2,3252.1,0.34309467]
[1737646922408,0.61508,3251.7,3251.6,0.00461467]
[1737646922816,5.0,3251.7,3250.7,3.2078]
[1737646923120,5.0,3251.7,3250.3,7.9729]
[1737646923121,0.61529,3250.6,3250.3,7.9729]
[1737646923420,0.61528,3250.7,3250.4,0.34338779]
[1737646923611,0.61526,3250.8,3250.5,0.34338779]
[1737646923811,7.65086176,3251.4,3250.6,0.34338779]
[1737646924005,0.00461467,3251.0,3250.7,0.34338779]
[1737646924214,0.00461467,3251.0,3250.6,2.90519176]
[1737646924413,0.00461467,3251.0,3250.9,0.61524]
[1737646924715,0.00461467,3251.0,3250.9,0.34337127]
[1737646924915,0.00461467,3251.0,3250.9,0.95857886]
[1737646925114,0.00461467,3251.0,3250.9,0.95857199]
[1737646925712,3.2078,3251.9,3250.9,0.34333199]
[1737646925908,3.2078,3251.9,3251.0,0.34333199]
[1737646926114,3.2078,3251.9,3251.1,0.34333199]
[1737646926316,3.2078,3251.4,3251.2,0.34362517]
[1737646926613,0.61526,3250.8,3250.3,7.97751467]
[1737646926816,0.61526,3250.8,3250.4,0.34364399]
[1737646927014,0.61526,3250.8,3250.5,0.34364399]
[1737646927220,0.61526,3250.8,3250.6,0.34364399]
[1737646927408,0.61526,3250.8,3250.7,0.34364399]